[Event "53rd Women Tournament 2022"]
[Site "Belgrade"]
[Date "2022.04.01"]
[Round "5.4"]
[White "Benderac, Ana"]
[Black "Kovacevic, Radmila"]
[Result "0-1"]
[ECO "D00"]
[WhiteElo "2180"]
[BlackElo "2072"]
[Annotator "TA"]
[PlyCount "84"]
[EventDate "2022.03.28"]
[EventType "tourn"]
[EventCountry "SRB"]
[SourceTitle "playchess.com"]
[Source "ChessBase"]
[SourceQuality "1"]
[TimeControl "40/5400+30:1800+30"]

{[%evp 9,84,14,36,47,29,25,47,17,12,-13,0,0,8,12,13,3,25,16,70,42,49,46,45,45,49,44,64,53,86,78,97,86,147,137,132,115,143,59,67,52,53,54,67,41,300,291,328,286,422,44,44,60,35,40,65,38,42,0,0,0,0,-233,-158,-273,-260,-247,-148,-303,-302,-456,-433,-439,-424,-616,-595,-29981,-29980]} 1. d4 {[%emt 0:00:03]} Nf6 {[%emt 0:10:13]} 2. Nc3 {[%emt 0:00:50]} d5 {[%emt 0:01:08]} 3. Nf3 {[%emt 0:00:15]} g6 {[%emt 0:00:17]} 4. Bf4 {[%emt 0:01:35]} Bg7 {[%emt 0:00:39]} 5. e3 {[%emt 0:00:32]} Bg4 {[%emt 0:00:49]} 6. h3 {[%emt 0:00:59] D00: 1 d4 d5: Unusual lines.} Bxf3 {[%emt 0:01:37]} 7. Qxf3 {[%emt 0:00:07]} c6 {[%emt 0:00:03]} 8. Bd3 {[%emt 0:06:00] White is slightly better.} Nbd7 {[%emt 0:12:38]} 9. O-O {[%emt 0:05:26]} Nh5 {[%emt 0:00:28] [#]} 10. Bh2 $146 {[%emt 0:01:55]} ({Predecessor:} 10. Bg5 Qb6 11. g4 Qxb2 12. Nxd5 cxd5 13. gxh5 e6 14. Rab1 Qc3 15. Rxb7 Qc6 16. Rfb1 {1-0 (31) Ridzvanavicius,J (2048)-Mecelica,E (1568) Lithuania 2019}) 10... O-O {[%emt 0:06:01]} 11. g4 {[%emt 0:23:54]} Nhf6 {[%emt 0:00:15]} 12. Qg2 {[%emt 0:00:36]} Re8 {[%emt 0:08:53]} 13. f4 {[%emt 0:16:29]} Kh8 {[%emt 0:03:23]} (13... e6 $11) 14. Ne2 {[%emt 0:20:35]} e6 {[%emt 0:02:09]} 15. c3 {[%emt 0:03:45]} c5 {[%emt 0:00:13]} 16. Kh1 {[%emt 0:02:32]} Qb6 {[%emt 0:00:11]} 17. Ng3 {[%emt 0:00:18]} Rac8 {[%emt 0:00:21]} 18. Rae1 {[%emt 0:00:14]} Qa5 {[%emt 0:00:38]} 19. a3 {[%emt 0:00:09]} Ng8 {[%emt 0:04:35]} 20. f5 {[%emt 0:02:52]} c4 {[%emt 0:05:35] [#]} (20... Qd8 $142) 21. fxg6 $1 {[%emt 0:02:16]} fxg6 {[%emt 0:00:08]} 22. Bb1 {[%emt 0:00:04]} e5 {[%emt 0:00:28]} 23. dxe5 {[%emt 0:00:39]} ({White should try} 23. g5 $16) 23... Nxe5 $14 {[%emt 0:01:00]} 24. e4 {[%emt 0:00:07][%cal Be3e4,Be4e5][%mdl 32]} d4 {[%emt 0:01:38]} 25. cxd4 {[%emt 0:00:35]} Nd3 {[%emt 0:00:07]} 26. Rd1 {[%emt 0:00:22]} Qb5 {[%emt 0:01:22][%mdl 8192] [#]} (26... Bxd4 $14 27. Bxd3 cxd3) 27. e5 $1 $18 {[%emt 0:05:43]} Nxb2 {[%emt 0:00:33]} 28. Ne4 {[%emt 0:00:36] Threatens to win with Nd6.} Red8 {[%emt 0:03:40]} (28... Rcd8 {was worth a try.}) 29. Nd6 $2 {[%emt 0:00:40]} (29. Rde1 $18) 29... Rxd6 $1 $14 {[%emt 0:00:24]} 30. exd6 {[%emt 0:00:02]} Nxd1 {[%emt 0:00:14]} 31. Rxd1 {[%emt 0:00:02]} Qb3 {[%emt 0:02:27]} 32. Bc2 {[%emt 0:01:19]} Qxa3 {[%emt 0:01:57]} 33. Be5 {[%emt 0:02:39]} Nf6 {[%emt 0:00:09] And now ...Nd7 would win.} 34. Rf1 {[%emt 0:00:12]} Nd7 {[%emt 0:03:31]} 35. Qh2 {[%emt 0:01:14]} (35. Bf5 $1 $11 {and White is okay.} gxf5 36. Bxg7+ Kxg7 37. gxf5+ Kf7 38. f6) 35... Re8 {[%emt 0:01:01][%cal Rg7e5]} 36. Be4 {[%emt 0:01:42]} (36. Qg3 $17 Qa5 37. Qe1 Qxe1 38. Rxe1 Bxe5 39. Ba4) 36... Bxe5 $19 {[%emt 0:02:32]} 37. dxe5 {[%emt 0:00:01]} Rxe5 {[%emt 0:00:14]} (37... Nxe5 $2 {[#]} 38. Rf8+ $3 {[%mdl 512]} Kg7 39. Rxe8 $18) ({Better is} 37... Kg7 $19 38. Rb1 Qe3) 38. Bxb7 $2 {[%emt 0:00:55]} (38. Rf8+ $17 Kg7 39. Rd8 Rxe4 40. Rxd7+ Kh6 41. Re7 Rxe7 42. Qf4+ Kg7 43. dxe7 Qxe7 44. Qxc4) 38... Qxd6 {[%emt 0:00:08] aiming for ...Qd3.} 39. Qb2 {[%emt 0:00:32]} (39. Be4 $142) 39... Qd3 {[%emt 0:02:51][%csl LRf1,LRh3]} 40. Bg2 {[%emt 0:00:24]} c3 {[%emt 0:03:09][%cal Bc4c3,Bc3c2][%mdl 32]} 41. Qb3 {[%emt 0:06:47]} (41. Qa1 $142) 41... Qd2 {[%emt 0:08:51] Hoping for ...Re1.} 42. Rf7 {[%emt 0:11:46]} c2 {[%emt 0:02:58] Quite a comeback for Black.  Weighted Error Value: White=0.70/Black=0.36} 0-1

[Event "53rd Women Tournament 2022"]
[Site "Belgrade"]
[Date "2022.04.01"]
[Round "5.5"]
[White "Srdanovic, Jovana"]
[Black "Xu, Yuanyuan"]
[Result "0-1"]
[ECO "E12"]
[WhiteElo "2194"]
[BlackElo "2317"]
[Annotator "NA"]
[PlyCount "84"]
[EventDate "2022.03.28"]
[EventType "tourn"]
[EventCountry "SRB"]
[SourceTitle "playchess.com"]
[Source "ChessBase"]
[SourceQuality "1"]
[TimeControl "40/5400+30:1800+30"]

1. d4 {[%emt 0:00:03]} Nf6 {[%emt 0:00:20]} 2. c4 {[%emt 0:01:11]} b6 {[%emt 0:00:20]} 3. Nc3 {[%emt 0:00:59]} Bb7 {[%emt 0:00:12]} 4. Nf3 {[%emt 0:06:25]} e6 {[%emt 0:06:32]} 5. a3 {[%emt 0:00:45]} d5 {[%emt 0:00:56]} 6. Bg5 {[%emt 0:01:54]} Nbd7 {[%emt 0:04:18]} 7. e3 {[%emt 0:02:02]} h6 {[%emt 0:00:12]} 8. Bh4 {[%emt 0:00:27]} g5 {[%emt 0:05:07]} 9. Bg3 {[%emt 0:00:43]} Ne4 {[%emt 0:00:04]} 10. cxd5 {[%emt 0:00:38]} Nxg3 {[%emt 0:07:35]} 11. hxg3 {[%emt 0:00:40]} exd5 {[%emt 0:00:05]} 12. Qb3 {[%emt 0:03:54]} c6 {[%emt 0:02:25]} 13. Bd3 {[%emt 0:08:54]} Bg7 {[%emt 0:07:02]} 14. a4 {[%emt 0:09:51]} O-O {[%emt 0:09:48]} 15. Qc2 {[%emt 0:07:02]} c5 {[%emt 0:02:24]} 16. Bh7+ {[%emt 0:03:05]} Kh8 {[%emt 0:00:09]} 17. O-O-O {[%emt 0:01:13]} Rc8 {[%emt 0:19:22]} 18. Bf5 {[%emt 0:06:12]} cxd4 {[%emt 0:04:56]} 19. exd4 {[%emt 0:00:29]} Rc7 {[%emt 0:02:13]} 20. Qd2 {[%emt 0:03:49]} Kg8 {[%emt 0:05:51]} 21. Rh2 {[%emt 0:23:28]} Qf6 {[%emt 0:05:38]} 22. g4 {[%emt 0:00:44]} Re8 {[%emt 0:01:21]} 23. Kb1 {[%emt 0:01:10]} Nf8 {[%emt 0:15:10]} 24. Nb5 {[%emt 0:06:22]} Rce7 {[%emt 0:00:00]} 25. Nc3 {[%emt 0:04:00]} Ne6 {[%emt 0:00:00]} 26. Rhh1 {[%emt 0:01:21]} Nf4 {[%emt 0:00:00]} 27. g3 {[%emt 0:00:39]} Ne2 {[%emt 0:00:00]} 28. Rhe1 {[%emt 0:01:41]} Nxc3+ {[%emt 0:02:30]} 29. Qxc3 {[%emt 0:00:07]} Qc6 {[%emt 0:00:00]} 30. Qb4 {[%emt 0:01:15]} a5 {[%emt 0:00:00]} 31. Qxe7 Rxe7 32. Re3 Rc7 33. Re5 Re7 34. Rxe7 Ba6 35. Bc2 Bf6 36. Re3 Qd7 37. Nh2 b5 38. axb5 Bxb5 39. Bf5 Qd6 40. Nf3 Qb4 41. Rc3 Be2 42. Rc8+ Kg7 {[%emt 0:35:13]} 0-1

[Event "53rd Women Tournament 2022"]
[Site "Belgrade"]
[Date "2022.04.02"]
[Round "6.1"]
[White "Chelushkina, Irina"]
[Black "Xu, Yuanyuan"]
[Result "0-1"]
[ECO "A34"]
[WhiteElo "2183"]
[BlackElo "2317"]
[Annotator "NA"]
[PlyCount "67"]
[EventDate "2022.03.28"]
[EventType "tourn"]
[EventCountry "SRB"]
[SourceTitle "playchess.com"]
[Source "ChessBase"]
[SourceQuality "1"]
[TimeControl "40/5400+30:1800+30"]

1. c4 {[%emt 0:00:16]} b6 {[%emt 0:05:17]} 2. Nc3 {[%emt 0:00:27]} c5 {[%emt 0:02:17]} 3. d3 {[%emt 0:00:41]} Bb7 {[%emt 0:01:28]} 4. Nf3 {[%emt 0:02:16]} e6 {[%emt 0:01:59]} 5. e4 {[%emt 0:02:24]} Ne7 {[%emt 0:05:11]} 6. Bf4 {[%emt 0:06:13]} Ng6 {[%emt 0:03:17]} 7. Bg3 {[%emt 0:01:24]} Nc6 {[%emt 0:07:15]} 8. h4 {[%emt 0:03:59]} h5 {[%emt 0:02:05]} 9. Be2 {[%emt 0:01:11]} Be7 {[%emt 0:00:23]} 10. d4 {[%emt 0:06:51]} cxd4 {[%emt 0:03:36]} 11. Nxd4 {[%emt 0:02:58]} a6 {[%emt 0:06:06]} 12. Nxc6 {[%emt 0:04:27]} Bxc6 {[%emt 0:01:53]} 13. Qd4 {[%emt 0:14:11]} Nxh4 {[%emt 0:07:43]} 14. O-O-O {[%emt 0:06:38]} Bf6 {[%emt 0:05:28]} 15. Qd3 {[%emt 0:10:45]} Ng6 {[%emt 0:14:24]} 16. Bxh5 {[%emt 0:08:34]} Ne5 {[%emt 0:00:13]} 17. Qf1 {[%emt 0:01:46]} b5 {[%emt 0:07:14]} 18. Be2 {[%emt 0:04:13]} Rxh1 {[%emt 0:02:57]} 19. Qxh1 {[%emt 0:00:03]} Qa5 {[%emt 0:00:45]} 20. f4 {[%emt 0:03:35]} Nxc4 {[%emt 0:01:21]} 21. e5 {[%emt 0:00:19]} Be7 {[%emt 0:01:21]} 22. Bxc4 {[%emt 0:00:37]} bxc4 {[%emt 0:00:06]} 23. Bf2 {[%emt 0:04:41]} O-O-O {[%emt 0:03:32]} 24. Qf1 {[%emt 0:02:10]} Bc5 {[%emt 0:04:25]} 25. Bd4 {[%emt 0:01:04]} d5 {[%emt 0:05:46]} 26. exd6 {[%emt 0:01:01]} Bxd6 {[%emt 0:00:39]} 27. Qxc4 {[%emt 0:01:10]} Bxf4+ {[%emt 0:00:54]} 28. Kb1 {[%emt 0:00:01]} Kb7 {[%emt 0:00:33]} 29. Rf1 {[%emt 0:02:03]} Qf5+ {[%emt 0:03:07]} 30. Ka1 {[%emt 0:00:01]} Bb5 {[%emt 0:00:58]} 31. Qb4 {[%emt 0:01:46]} Rxd4 {[%emt 0:01:26]} 32. Qxd4 {[%emt 0:01:15]} Bxf1 {[%emt 0:00:10]} 33. Ne4 {[%emt 0:00:03]} Qd5 {[%emt 0:01:13]} 34. Qd1 {[%emt 0:08:27]} 0-1

[Event "53rd Women Tournament 2022"]
[Site "Belgrade"]
[Date "2022.04.02"]
[Round "6.3"]
[White "Toncheva, Nadya"]
[Black "Benderac, Ana"]
[Result "1-0"]
[ECO "D48"]
[WhiteElo "2207"]
[BlackElo "2180"]
[Annotator "TA"]
[PlyCount "115"]
[EventDate "2022.03.28"]
[EventType "tourn"]
[EventCountry "SRB"]
[SourceTitle "playchess.com"]
[Source "ChessBase"]
[SourceQuality "1"]
[TimeControl "40/5400+30:1800+30"]

{[%evp 19,115,-8,0,-18,-25,-20,-25,-29,30,37,18,12,10,0,-12,-7,0,-18,0,0,37,16,54,0,0,-183,-152,-157,-143,-198,-145,-139,-147,-157,-71,-150,-112,-95,-102,-158,-148,-168,-94,-155,-8,-135,0,0,9,-16,-16,-16,-16,-16,-16,-16,-16,-16,0,-22,0,0,21,-18,12,12,12,0,29941,29947,29956,29957,29956,29957,29959,29960,29960,29961,29962,29963,29964,29965,29965,29966,29965,29967,29966,29968,29972,29972,29972,29973,29975,29974,29976,29971,29975,29976]} 1. d4 {[%emt 0:00:04]} d5 {[%emt 0:00:27]} 2. c4 {[%emt 0:00:05]} e6 {[%emt 0:00:48]} 3. Nc3 {[%emt 0:00:05]} dxc4 {[%emt 0:01:07]} 4. e3 {[%emt 0:00:59]} Nf6 {[%emt 0:00:41]} 5. Bxc4 {[%emt 1:31:47]} c5 {[%emt 0:01:56]} 6. Nf3 {[%emt 0:00:00]} a6 {[%emt 0:00:26]} 7. O-O {[%emt 0:00:00]} b5 {[%emt 0:03:25]} 8. Bd3 {[%emt 0:00:00]} Bb7 {[%emt 1:25:40]} 9. Qe2 {[%emt 0:00:00]} Nbd7 {[%emt 0:00:30]} 10. Rd1 {[%emt 0:02:30]} Qb6 {[%emt 0:00:30] 10...Qb8 is the modern continuation.} 11. b3 {[%emt 0:00:00] D48: Semi-Slav: Meran System: 7...b5 8 Bd3 a6.} cxd4 {[%emt 0:00:00]} 12. exd4 {[%emt 0:01:00][%cal Od4d5]} Rc8 {[%emt 0:00:00]} 13. Bb2 {[%emt 0:00:00][%cal Od4d5] Black has an edge.} Nd5 {[%emt 0:00:00]} (13... Bb4 $142 14. Rac1 O-O) 14. Nxd5 $11 {[%emt 0:00:00]} Bxd5 {[%emt 0:02:00] [#]} 15. Rac1 $146 {[%emt 0:01:30]} ({Predecessor:} 15. Ne5 Qb7 16. f4 Be7 17. Rf1 Nf6 18. f5 O-O 19. fxe6 Bxe6 20. Rf3 {1-0 (37) Limp,E (2440)-Pinto,S (2154) Rio de Janeiro 2006}) 15... Rb8 {[%emt 0:00:30]} 16. Bb1 {[%emt 0:00:00]} Be7 {[%emt 0:00:30]} 17. Ne5 {[%emt 0:01:00]} Qb7 {[%emt 0:00:30]} 18. Rc3 {[%emt 0:00:30]} (18. Qg4 $5 {[%cal Rg4g7]} Nxe5 19. Qxg7 (19. dxe5 O-O $11) 19... Nf3+ 20. gxf3 $11) 18... Nxe5 {[%emt 0:00:00]} (18... Bxg2 $2 19. f3 Nxe5 20. Qxe5 Bxf3 21. Rxf3 $1 {[%mdl 512]} Qxf3 22. Qxb8+ Bd8 23. Rd3 $18) 19. dxe5 {[%emt 0:00:00]} Rc8 {[%emt 0:00:00]} 20. Qg4 {[%emt 0:00:00] Strongly threatening Rxc8+.} O-O {[%emt 0:00:00]} 21. Rh3 {[%emt 0:00:00]} (21. Rg3 $1 $14 g6 22. h4) 21... g6 {[%emt 0:02:00]} 22. Qf4 $2 {[%emt 0:02:00]} (22. Rg3 $11) 22... Bxg2 $19 {[%emt 0:00:00]} 23. Rg3 {[%emt 0:00:00]} Rfd8 {[%emt 0:00:00][%cal Rd8d1]} 24. Re1 {[%emt 0:00:00]} (24. Rd6 $17) 24... Bd5 {[%emt 0:00:00]} (24... Bc6 $19 25. Rc3 b4) 25. h4 $17 {[%emt 0:00:00]} Bf8 {[%emt 0:00:00]} 26. h5 {[%emt 0:00:00]} Bg7 {[%emt 0:00:00]} (26... Qe7 $142 27. Bc3 Rd7) 27. Kh2 {[%emt 0:02:30]} (27. Bc3 $142) 27... Qe7 {[%emt 0:00:00]} 28. Reg1 a5 {[%emt 0:03:30][%cal Og7h6]} 29. Rg4 {[%emt 0:01:00]} ({White should try} 29. Rh3) 29... a4 {[%emt 0:00:30]} 30. Qg3 {[%emt 0:00:30][%cal Rh5g6] [#]} axb3 {[%emt 0:00:00]} (30... b4 $1 $19 31. bxa4 Rc4 32. Rxc4 Bxc4) 31. axb3 {[%emt 0:00:00][%cal Rh5g6]} Rd7 {[%emt 0:00:00]} (31... b4 $17 {next ...Rd7 is good for Black.} 32. Qh3 Rd7) 32. Bc1 {[%emt 0:01:00]} (32. Bc3 $1 $11 {was the only way to keep the balance.}) 32... Rxc1 {[%emt 0:00:00]} 33. Rxc1 $11 {[%emt 0:00:00][%cal Rh5g6]} Rc7 {[%emt 0:00:00]} 34. Rd1 {[%emt 0:00:00]} b4 {[%emt 0:02:30]} 35. hxg6 {[%emt 0:00:00]} hxg6 {[%emt 0:00:00] White must now prevent ...Rc3.} 36. Be4 {[%emt 0:00:00]} Rc3 {[%emt 0:00:00]} 37. Rd3 {[%emt 0:02:30]} Qc7 {[%emt 0:00:00]} 38. Bxd5 {[%emt 0:00:30][%cal Og4g6]} exd5 {[%emt 0:01:13]} 39. f4 {[%emt 0:00:00]} d4 {[%emt 0:00:06] aiming for ...Qc8.} 40. e6 {[%emt 0:00:06]} fxe6 {[%emt 0:00:37]} 41. Qf3 {[%emt 0:31:24]} Kf7 {[%emt 0:19:59]} 42. Qe4 {[%emt 0:00:00]} g5 {[%emt 0:00:15]} 43. Rd2 {[%emt 0:00:00] Dancing on a razor blade.} ({But not} 43. Rxc3 $2 bxc3 44. Rxg5 c2 $19) 43... gxf4 {[%emt 0:03:27][%mdl 8192]} (43... Qc6 $11 44. Qh7 (44. Qxc6 Rxc6 45. Rxg5 Bh6 $11) 44... Qf3) 44. Ra2 {[%emt 0:00:00] White mates.} f3+ {[%emt 0:01:44]} 45. Kh3 {[%emt 0:02:00]} f2+ {[%emt 0:03:13]} 46. Kg2 {[%emt 0:00:00]} Rg3+ {[%emt 0:00:44]} 47. Rxg3 {[%emt 0:00:00]} ({Not} 47. Kxf2 Rxg4 48. Qxg4 Qh2+ 49. Qg2 Qxg2+ 50. Kxg2 Kg6 $11) 47... f1=Q+ {[%emt 0:00:07]} 48. Kxf1 {[%emt 0:00:00]} Qxg3 {[%emt 0:00:04] [#] KQR-KQB} 49. Ra7+ $1 {[%emt 0:00:00][%mdl 64] Deflection} Kg8 {[%emt 0:06:01]} 50. Qxe6+ {[%emt 0:00:00]} Kh7 {[%emt 0:00:00]} 51. Qf5+ {[%emt 0:00:00]} Qg6 {[%emt 0:00:00]} 52. Qxg6+ {[%emt 0:00:00]} Kxg6 {[%emt 0:01:30] KR-KB} 53. Ke2 {[%emt 0:04:00]} Bf8 {[%emt 0:00:00]} 54. Kd3 {[%emt 0:00:00]} Kf6 {[%emt 0:00:00]} 55. Kxd4 {[%emt 0:00:00]} Ke6 {[%emt 0:00:00]} 56. Ra6+ {[%emt 0:00:00]} Kd7 {[%emt 0:00:00]} 57. Kd5 {[%emt 0:00:00]} Kc7 {[%emt 0:00:00]} 58. Rf6 {[%emt 0:00:00] White used his chance.  Weighted Error Value: White=0.21 (precise) /Black=0.35} 1-0

[Event "53rd Women Tournament 2022"]
[Site "Belgrade"]
[Date "2022.04.02"]
[Round "6.4"]
[White "Grozdanovic, Anastasia"]
[Black "Navrotescu, Andreea"]
[Result "0-1"]
[ECO "E11"]
[WhiteElo "2005"]
[BlackElo "2229"]
[Annotator "ChessBase"]
[PlyCount "130"]
[EventDate "2022.03.28"]
[EventType "tourn"]
[EventCountry "SRB"]
[SourceTitle "playchess.com"]
[Source "ChessBase"]
[SourceQuality "1"]
[TimeControl "40/5400+30:1800+30"]

1. d4 {[%emt 0:00:02]} e6 {[%emt 0:00:06]} 2. Nf3 {[%emt 0:00:10]} Nf6 {[%emt 0:00:08]} 3. c4 {[%emt 0:00:04]} Bb4+ {[%emt 0:00:06]} 4. Bd2 {[%emt 0:00:05]} a5 {[%emt 0:00:05]} 5. a3 {[%emt 0:00:15]} Bxd2+ {[%emt 0:00:08]} 6. Qxd2 {[%emt 0:00:05]} d6 {[%emt 0:00:46]} 7. Nc3 {[%emt 0:01:27]} Nc6 {[%emt 0:00:24]} 8. e4 {[%emt 0:03:12]} O-O {[%emt 0:02:38]} 9. Bd3 {[%emt 0:02:48]} e5 {[%emt 0:00:29]} 10. d5 {[%emt 0:02:20]} Nb8 {[%emt 0:00:30]} 11. h3 {[%emt 0:03:34]} Nbd7 {[%emt 0:02:48]} 12. O-O {[%emt 0:02:39]} a4 {[%emt 0:00:30]} 13. Bc2 {[%emt 0:11:45]} Nc5 {[%emt 0:00:25]} 14. Qe3 {[%emt 0:02:28]} b6 {[%emt 0:01:32]} 15. Nd2 {[%emt 0:03:17]} Nh5 {[%emt 0:07:24]} 16. Ne2 {[%emt 0:02:57]} Ba6 {[%emt 0:04:59]} 17. g4 {[%emt 0:08:25]} Nf6 {[%emt 0:00:44]} 18. f4 {[%emt 0:00:51]} exf4 {[%emt 0:01:02]} 19. Rxf4 {[%emt 0:02:14]} Nfd7 {[%emt 0:00:40]} 20. Nd4 {[%emt 0:11:48]} Ne5 {[%emt 0:03:09]} 21. Qc3 {[%emt 0:07:13]} Bc8 {[%emt 0:04:22]} 22. Nf5 {[%emt 0:03:37]} Bd7 {[%emt 0:08:20]} 23. Raf1 {[%emt 0:03:19]} f6 {[%emt 0:07:37]} 24. Qg3 {[%emt 0:05:50]} Bxf5 {[%emt 0:05:08]} 25. exf5 {[%emt 0:03:50]} Qe7 {[%emt 0:03:11]} 26. h4 {[%emt 0:03:24]} Kh8 {[%emt 0:02:25]} 27. Ne4 {[%emt 0:02:25]} Nxe4 {[%emt 0:01:41]} 28. Rxe4 {[%emt 0:00:05]} Qd7 {[%emt 0:00:55]} 29. Bd3 {[%emt 0:01:33]} Ra5 {[%emt 0:00:33]} 30. Be2 {[%emt 0:01:16]} Rc5 {[%emt 0:00:42]} 31. Rd1 {[%emt 0:04:27]} Re8 {[%emt 0:03:09]} 32. Qf4 {[%emt 0:01:15]} Qf7 {[%emt 0:01:34]} 33. Rd2 {[%emt 0:01:39]} Rc8 {[%emt 0:06:15]} 34. Bd1 {[%emt 0:00:25]} b5 {[%emt 0:04:39]} 35. cxb5 {[%emt 0:00:53]} Rxd5 {[%emt 0:00:01]} 36. Red4 {[%emt 0:01:06]} Rxb5 {[%emt 0:02:36]} 37. Bxa4 {[%emt 0:00:52]} Rc5 {[%emt 0:01:10]} 38. Bd1 {[%emt 0:01:19]} Rc1 {[%emt 0:03:01]} 39. Kg2 {[%emt 0:01:45]} Qd7 {[%emt 0:01:10]} 40. Bb3 {[%emt 0:00:45]} Qb5 {[%emt 0:01:25]} 41. Rb4 {[%emt 0:32:19]} Qa6 {[%emt 0:33:17]} 42. Be6 {[%emt 0:00:00]} Rd8 {[%emt 0:00:00]} 43. g5 {[%emt 0:00:00]} Rb1 {[%emt 0:00:00]} 44. gxf6 {[%emt 0:00:00]} gxf6 {[%emt 0:00:00]} 45. Rbd4 {[%emt 0:00:00]} Qc6+ {[%emt 0:00:00]} 46. Qe4 {[%emt 0:00:00]} Qc1 {[%emt 0:00:00]} 47. Kh3 {[%emt 0:00:00]} Rxb2 {[%emt 0:02:10]} 48. Rxb2 {[%emt 0:00:00]} Qxb2 {[%emt 0:00:06]} 49. Ra4 {[%emt 0:00:00]} d5 {[%emt 0:03:36]} 50. Qe3 {[%emt 0:00:00]} d4 {[%emt 0:02:30]} 51. Qg3 {[%emt 0:01:01]} Qc3 {[%emt 0:03:26]} 52. Qxc3 {[%emt 0:00:21]} dxc3 {[%emt 0:00:02]} 53. Bb3 {[%emt 0:00:14]} Rd3+ {[%emt 0:00:31]} 54. Kg2 {[%emt 0:00:10]} c2 {[%emt 0:00:28]} 55. Ra8+ {[%emt 0:00:17]} Kg7 {[%emt 0:00:02]} 56. Bxc2 {[%emt 0:00:15]} Rd2+ {[%emt 0:00:05]} 57. Kg3 {[%emt 0:00:03]} Rxc2 {[%emt 0:00:07]} 58. a4 {[%emt 0:00:14]} Ra2 {[%emt 0:02:08]} 59. Ra7 {[%emt 0:00:10]} Nf7 {[%emt 0:00:05]} 60. Rxc7 {[%emt 0:00:08]} Rxa4 {[%emt 0:00:02]} 61. h5 {[%emt 0:00:25]} Rd4 {[%emt 0:00:58]} 62. Ra7 {[%emt 0:00:08]} Kf8 {[%emt 0:00:19]} 63. Ra8+ {[%emt 0:00:14]} Ke7 {[%emt 0:00:21]} 64. Rg8 {[%emt 0:00:10]} Ng5 {[%emt 0:00:52]} 65. Rg7+ {[%emt 0:00:15]} Kd6 {[%emt 0:00:05]} 0-1

[Event "53rd Women Tournament 2022"]
[Site "Belgrade"]
[Date "2022.04.02"]
[Round "6.5"]
[White "Lu, Miaoyi"]
[Black "Manakova, Maria"]
[Result "0-1"]
[ECO "B51"]
[WhiteElo "2182"]
[BlackElo "2257"]
[Annotator "NA"]
[PlyCount "100"]
[EventDate "2022.03.28"]
[EventType "tourn"]
[EventCountry "SRB"]
[SourceTitle "playchess.com"]
[Source "ChessBase"]
[SourceQuality "1"]
[TimeControl "40/5400+30:1800+30"]

1. e4 {[%emt 0:00:02]} c5 {[%emt 0:00:31]} 2. Nf3 {[%emt 0:00:03]} Nc6 {[%emt 0:00:04]} 3. Bb5 {[%emt 0:00:06]} d6 {[%emt 0:00:17]} 4. O-O {[%emt 0:00:04]} e5 {[%emt 0:00:21]} 5. c3 {[%emt 0:00:13]} a6 {[%emt 0:02:11]} 6. Bxc6+ {[%emt 0:00:17]} bxc6 {[%emt 0:00:03]} 7. d4 {[%emt 0:00:19]} Qc7 {[%emt 0:00:19]} 8. dxe5 {[%emt 0:09:11]} dxe5 {[%emt 0:00:05]} 9. Nbd2 {[%emt 0:13:17]} f6 {[%emt 0:02:09]} 10. Nc4 {[%emt 0:04:01]} Be6 {[%emt 0:00:35]} 11. Qe2 {[%emt 0:09:49]} Ne7 {[%emt 0:05:03]} 12. Nh4 {[%emt 0:09:45]} g5 {[%emt 0:01:25]} 13. Nf5 {[%emt 0:08:01]} Nxf5 {[%emt 0:02:58]} 14. exf5 {[%emt 0:00:05]} Bd5 {[%emt 0:07:55]} 15. Nd2 {[%emt 0:14:58]} Be7 {[%emt 0:08:17]} 16. c4 {[%emt 0:13:05]} Bf7 {[%emt 0:00:17]} 17. Ne4 {[%emt 0:02:06]} Qd7 {[%emt 0:01:59]} 18. b3 {[%emt 0:10:16]} Qxf5 {[%emt 0:01:03]} 19. f4 {[%emt 0:00:59]} gxf4 {[%emt 0:04:04]} 20. Bxf4 {[%emt 0:02:12]} Bg6 {[%emt 0:01:24]} 21. Ng3 {[%emt 0:00:54]} Qd3 {[%emt 0:01:32]} 22. Be3 {[%emt 0:00:41]} Qxe2 {[%emt 0:02:02]} 23. Nxe2 {[%emt 0:00:02]} O-O-O {[%emt 0:00:58]} 24. Rad1 {[%emt 0:00:59]} f5 {[%emt 0:11:51]} 25. g3 {[%emt 0:00:22]} Bh5 {[%emt 0:02:04]} 26. Rxd8+ {[%emt 0:00:28]} Rxd8 {[%emt 0:00:10]} 27. Nc1 {[%emt 0:00:37]} f4 {[%emt 0:02:03]} 28. gxf4 {[%emt 0:00:36]} Rg8+ {[%emt 0:00:26]} 29. Kh1 {[%emt 0:00:02]} e4 {[%emt 0:00:27]} 30. h4 {[%emt 0:00:04]} Bxh4 {[%emt 0:12:55]} 31. Kh2 {[%emt 0:00:15]} Be7 {[%emt 0:17:45]} 32. Rg1 {[%emt 0:00:19]} Bg4 {[%emt 0:02:43]} 33. Ne2 {[%emt 0:00:59]} Rg6 {[%emt 0:00:15]} 34. Nc3 {[%emt 0:01:05]} Rh6+ {[%emt 0:00:12]} 35. Kg3 {[%emt 0:00:38]} Bf3 {[%emt 0:03:37]} 36. f5 {[%emt 0:00:33]} Rh5 {[%emt 0:01:11]} 37. Kf2 {[%emt 0:00:40]} Rxf5 {[%emt 0:03:05]} 38. Rg7 {[%emt 0:00:23]} Bf6 {[%emt 0:01:29]} 39. Rg8+ {[%emt 0:00:02]} Kc7 {[%emt 0:02:02]} 40. Na4 {[%emt 0:00:51]} Bd4 {[%emt 0:01:19]} 41. Rg3 {[%emt 0:30:29]} Bg4+ {[%emt 0:30:56]} 42. Ke1 {[%emt 0:00:34]} h5 {[%emt 0:00:07]} 43. b4 {[%emt 0:00:00]} Be5 {[%emt 0:00:00]} 44. Rg2 {[%emt 0:00:00]} cxb4 {[%emt 0:00:00]} 45. Bc5 {[%emt 0:00:00]} Bc3+ {[%emt 0:00:00]} 46. Nxc3 {[%emt 0:00:00]} Rxc5 {[%emt 0:00:00]} 47. Nd1 {[%emt 0:00:00]} Rxc4 {[%emt 0:00:00]} 48. Ne3 {[%emt 0:00:00]} Rc1+ {[%emt 0:00:00]} 49. Kf2 {[%emt 0:00:00]} Rc3 {[%emt 0:00:00]} 50. Nf1 {[%emt 0:00:00]} Rf3+ {[%emt 0:00:00]} 0-1